{"text_format":"1","workbook":"xlsx","n_sheets":10,"sheets":["Classement","FMJ1","FMJ2","FMJ3","FMJ4","FMJ5","Quart-Finale","Demi-Finale","Finale","Barrages"],"not_rendered":{"charts":0,"images":37,"macros":1,"external_links":0,"defined_names":0,"comments":0,"pivot_tables":0},"unopened":[],"bounds":{"document_bytes":16777216,"sheet_cells":100000,"rows_first":2000,"rows_last":500,"rows_between":2000,"halvings":0,"cell_chars":16384,"cell_head_chars":4096},"cells_cut":0,"cells_raw":0,"read":"whole","date_system":"1900"}

{"sheet":"Classement","index":0,"n_rows":39,"n_cols":30,"rows_kept":39,"cut":false,"hidden":false,"merged":[[13,18,13,19],[13,21,13,22],[16,18,16,19],[16,21,16,22],[19,18,19,19],[19,21,19,22],[13,13,13,14],[0,0,3,30],[5,24,5,30],[7,26,7,27],[7,29,7,30],[10,26,10,27],[10,29,10,30],[5,16,5,22],[7,18,7,19],[7,21,7,22],[10,18,10,19],[10,21,10,22],[8,21,8,22],[9,21,9,22],[5,0,5,6],[10,2,10,3],[10,5,10,6],[7,2,7,3],[7,5,7,6],[5,8,5,14],[7,10,7,11],[7,13,7,14],[16,2,16,3],[16,5,16,6],[19,2,19,3],[19,5,19,6],[8,5,8,6],[9,5,9,6],[11,5,11,6],[12,5,12,6],[14,5,14,6],[15,5,15,6],[17,5,17,6],[18,5,18,6],[13,2,13,3],[13,5,13,6],[20,5,20,6],[21,5,21,6],[8,13,8,14],[9,13,9,14],[11,13,11,14],[12,13,12,14],[14,13,14,14],[15,13,15,14],[17,13,17,14],[18,13,18,14],[20,13,20,14],[21,13,21,14],[10,10,10,11],[10,13,10,14],[16,10,16,11],[16,13,16,14],[19,10,19,11],[19,13,19,14],[13,10,13,11],[17,29,17,30],[18,29,18,30],[15,29,15,30],[20,21,20,22],[21,21,21,22],[20,29,20,30],[21,29,21,30],[19,29,19,30],[8,29,8,30],[9,29,9,30],[11,29,11,30],[12,29,12,30],[14,29,14,30],[13,29,13,30],[11,21,11,22],[12,21,12,22],[14,21,14,22],[15,21,15,22],[16,29,16,30],[16,26,16,27],[19,26,19,27],[13,26,13,27],[18,21,18,22],[17,21,17,22],[37,5,37,6],[38,5,38,6],[32,8,32,14],[34,10,34,11],[34,13,34,14],[35,13,35,14],[36,13,36,14],[32,0,32,6],[34,2,34,3],[34,5,34,6],[35,5,35,6],[36,5,36,6],[32,24,32,30],[34,26,34,27],[34,29,34,30],[35,29,35,30],[36,29,36,30],[37,29,37,30],[38,29,38,30],[32,16,32,22],[34,18,34,19],[34,21,34,22],[35,21,35,22]]}
["Interclubs d'hiver HOMMES 2021 - 2022"]
[]
[]
[]
[]
["POULE A - CENTRE EST",null,null,null,null,null,null,null,"POULE B - EST",null,null,null,null,null,null,null,"POULE C - CENTRE OUEST",null,null,null,null,null,null,null,"POULE D - OUEST"]
[]
["Journée 1",null,"Scores",null,null,"Play-off",null,null,"Journée 1",null,"Scores",null,null,"Play-off",null,null,"Journée 1",null,"Scores",null,null,"Play-off",null,null,"Journée 1",null,"Scores",null,null,"Play-off"]
["2021-11-07","ANGERS",41,9,"CHOLET",null,null,null,"2021-11-07","LAVAL",24,24,"ALENCON","LAVAL",null,null,"2021-11-07","NANTES VIGNEUX",27,18,"NANTES ERDRE",null,null,null,"2021-11-07","GUERANDE",35,23,"PORNIC"]
["2021-11-07","ANJOU",12,37,"ILE D'OR",null,null,null,"2021-11-07","BAUGE",36,18,"SABLE-SOLESMES",null,null,null,"2021-11-07","LA DOMANGERE",24,28,"SAVENAY",null,null,null,"2021-11-07","SAINT-JEAN-DE-MTS",30,19,"BOURGENAY"]
["Journée 2",null,"Scores",null,null,"Play-off",null,null,"Journée 2",null,"Scores",null,null,"Play-off",null,null,"Journée 2",null,"Scores",null,null,"Play-off",null,null,"Journée 2",null,"Scores",null,null,"Play-off"]
["2021-11-14","AVRILLE",24,18,"ANGERS",null,null,null,"2021-11-14","LE MANS 24H",30,19,"LAVAL",null,null,null,"2021-11-14","CARQUEFOU",13,39,"NANTES VIGNEUX",null,null,null,"2021-11-14","LA BAULE",22,24,"GUERANDE"]
["2021-11-14","CHOLET",37,19,"ANJOU",null,null,null,"2021-11-14","ALENCON",23,22,"BAUGE",null,null,null,"2021-11-14","NANTES ERDRE","F",31,"LA DOMANGERE",null,null,null,"2021-11-14","PORNIC",17,30,"SAINT-JEAN-DE-MTS"]
["Journée 3",null,"Scores",null,null,"Play-off",null,null,"Journée 3",null,"Scores",null,null,"Play-off",null,null,"Journée 3",null,"Scores",null,null,"Play-off",null,null,"Journée 3",null,"Scores",null,null,"Play-off"]
["2021-11-28","ANGERS",41,17,"ANJOU",null,null,null,"2021-11-28","LAVAL",27,26,"BAUGE",null,null,null,"2021-11-28","NANTES VIGNEUX",30,20,"LA DOMANGERE",null,null,null,"2021-11-28","GUERANDE",24,23,"SAINT-JEAN-DE-MTS"]
["2021-11-28","ILE D'OR",29,22,"AVRILLE",null,null,null,"2021-11-28","SABLE-SOLESMES",26,21,"LE MANS 24H",null,null,null,"2021-11-28","SAVENAY",37,18,"CARQUEFOU",null,null,null,"2021-11-28","BOURGENAY",21,29,"LA BAULE"]
["Journée 4",null,"Scores",null,null,"Play-off",null,null,"Journée 4",null,"Scores",null,null,"Play-off",null,null,"Journée 4",null,"Scores",null,null,"Play-off",null,null,"Journée 4",null,"Scores",null,null,"Play-off"]
["2021-12-12","ILE D'OR",24,23,"ANGERS",null,null,null,"2021-12-12","SABLE-SOLESMES",28,20,"LAVAL",null,null,null,"2021-12-12","SAVENAY",21,22,"NANTES VIGNEUX",null,null,null,"2021-12-12","BOURGENAY",22,26,"GUERANDE"]
["2021-12-12","AVRILLE",32,20,"CHOLET",null,null,null,"2021-12-12","LE MANS 24H",34,13,"ALENCON",null,null,null,"2021-12-12","CARQUEFOU",17,28,"NANTES ERDRE",null,null,null,"2021-12-12","LA BAULE",32,18,"PORNIC"]
["Journée 5",null,"Scores",null,null,"Play-off",null,null,"Journée 5",null,"Scores",null,null,"Play-off",null,null,"Journée 5",null,"Scores",null,null,"Play-off",null,null,"Journée 5",null,"Scores",null,null,"Play-off"]
["2022-01-09","CHOLET",16,27,"ILE D'OR",null,null,null,"2022-01-09","ALENCON",36,19,"SABLE-SOLESMES",null,null,null,"2022-01-09","NANTES ERDRE",18,41,"SAVENAY",null,null,null,"2022-01-09","PORNIC",32,18,"BOURGENAY"]
["2022-01-09","ANJOU",25,26,"AVRILLE",null,null,null,"2022-01-09","BAUGE",28,27,"LE MANS 24H",null,null,null,"2022-01-09","LA DOMANGERE",28,24,"CARQUEFOU",null,null,null,"2022-01-09","SAINT-JEAN-DE-MTS",27,24,"LA BAULE"]
[]
["Classement POULE A",null,"Pts","Tg","Mj",null,null,null,"Classement POULE B",null,"Pts","Tg","Mj",null,null,null,"Classement POULE C",null,"Pts","Tg","Mj",null,null,null,"Classement POULE D",null,"Pts","Tg","Mj"]
[{"$f":"classementPoule(B25,2)","v":1},"ILE D'OR",{"$f":"CalculerNombrePoints(B25,2)","v":8},{"$f":"CalculerNombreTrouGagne(B25,2)","v":117},{"$f":"CalculerNombreMatchs(B25,2)","v":4},null,null,null,{"$f":"classementPoule(J25,10)","v":1},"LE MANS 24H",{"$f":"CalculerNombrePoints(J25,10)","v":6},{"$f":"CalculerNombreTrouGagne(J25,10)","v":112},{"$f":"CalculerNombreMatchs(J25,10)","v":4},null,null,null,{"$f":"classementPoule(R25,18)","v":1},"NANTES VIGNEUX",{"$f":"CalculerNombrePoints(R25,18)","v":8},{"$f":"CalculerNombreTrouGagne(R25,18)","v":118},{"$f":"CalculerNombreMatchs(R25,18)","v":4},null,null,null,{"$f":"classementPoule(Z25,26)","v":1},"GUERANDE",{"$f":"CalculerNombrePoints(Z25,26)","v":8},{"$f":"CalculerNombreTrouGagne(Z25,26)","v":109},{"$f":"CalculerNombreMatchs(Z25,26)","v":4}]
[{"$f":"classementPoule(B26,2)","v":2},"AVRILLE",{"$f":"CalculerNombrePoints(B26,2)","v":7},{"$f":"CalculerNombreTrouGagne(B26,2)","v":104},{"$f":"CalculerNombreMatchs(B26,2)","v":4},null,null,null,{"$f":"classementPoule(J26,10)","v":1},"BAUGE",{"$f":"CalculerNombrePoints(J26,10)","v":6},{"$f":"CalculerNombreTrouGagne(J26,10)","v":112},{"$f":"CalculerNombreMatchs(J26,10)","v":4},null,null,null,{"$f":"classementPoule(R26,18)","v":2},"SAVENAY",{"$f":"CalculerNombrePoints(R26,18)","v":7},{"$f":"CalculerNombreTrouGagne(R26,18)","v":127},{"$f":"CalculerNombreMatchs(R26,18)","v":4},null,null,null,{"$f":"classementPoule(Z26,26)","v":2},"SAINT-JEAN-DE-MTS",{"$f":"CalculerNombrePoints(Z26,26)","v":7},{"$f":"CalculerNombreTrouGagne(Z26,26)","v":110},{"$f":"CalculerNombreMatchs(Z26,26)","v":4}]
[{"$f":"classementPoule(B27,2)","v":3},"ANGERS",{"$f":"CalculerNombrePoints(B27,2)","v":6},{"$f":"CalculerNombreTrouGagne(B27,2)","v":123},{"$f":"CalculerNombreMatchs(B27,2)","v":4},null,null,null,1,"ALENCON",{"$f":"CalculerNombrePoints(J27,10)","v":6},{"$f":"CalculerNombreTrouGagne(J27,10)","v":96},{"$f":"CalculerNombreMatchs(J27,10)","v":4},null,null,null,3,"LA DOMANGERE",{"$f":"CalculerNombrePoints(R27,18)","v":6},{"$f":"CalculerNombreTrouGagne(R27,18)","v":103},{"$f":"CalculerNombreMatchs(R27,18)","v":4},null,null,null,3,"LA BAULE",{"$f":"CalculerNombrePoints(Z27,26)","v":6},{"$f":"CalculerNombreTrouGagne(Z27,26)","v":107},{"$f":"CalculerNombreMatchs(Z27,26)","v":4}]
[{"$f":"classementPoule(B28,2)","v":4},"CHOLET",{"$f":"CalculerNombrePoints(B28,2)","v":5},{"$f":"CalculerNombreTrouGagne(B28,2)","v":82},{"$f":"CalculerNombreMatchs(B28,2)","v":4},null,null,null,1,"SABLE-SOLESMES",{"$f":"CalculerNombrePoints(J28,10)","v":6},{"$f":"CalculerNombreTrouGagne(J28,10)","v":91},{"$f":"CalculerNombreMatchs(J28,10)","v":4},null,null,null,4,"CARQUEFOU",{"$f":"CalculerNombrePoints(R28,18)","v":4},{"$f":"CalculerNombreTrouGagne(R28,18)","v":72},{"$f":"CalculerNombreMatchs(R28,18)","v":4},null,null,null,4,"PORNIC",{"$f":"CalculerNombrePoints(Z28,26)","v":5},{"$f":"CalculerNombreTrouGagne(Z28,26)","v":90},{"$f":"CalculerNombreMatchs(Z28,26)","v":4}]
[{"$f":"classementPoule(B29,2)","v":5},"ANJOU",{"$f":"CalculerNombrePoints(B29,2)","v":4},{"$f":"CalculerNombreTrouGagne(B29,2)","v":73},{"$f":"CalculerNombreMatchs(B29,2)","v":4},null,null,null,1,"LAVAL",{"$f":"CalculerNombrePoints(J29,10)","v":6},{"$f":"CalculerNombreTrouGagne(J29,10)","v":90},{"$f":"CalculerNombreMatchs(J29,10)","v":4},null,null,null,4,"NANTES ERDRE",{"$f":"CalculerNombrePoints(R29,18)","v":4},{"$f":"CalculerNombreTrouGagne(R29,18)","v":64},{"$f":"CalculerNombreMatchs(R29,18)","v":4},null,null,null,5,"BOURGENAY",{"$f":"CalculerNombrePoints(Z29,26)","v":4},{"$f":"CalculerNombreTrouGagne(Z29,26)","v":80},{"$f":"CalculerNombreMatchs(Z29,26)","v":4}]
[]
[]
[]
["QUART-DE-FINALE",null,null,null,null,null,null,null,"DEMI-FINALE",null,null,null,null,null,null,null,"FINALE",null,null,null,null,null,null,null,"BARAGES"]
[]
["Journée 1",null,"Scores",null,null,"Play-off",null,null,"Journée 1",null,"Scores",null,null,"Play-off",null,null,"Journée 1",null,"Scores",null,null,null,null,null,"Journée 1",null,"Scores",null,null,"Play-off"]
["2021-01-23","ILE D'OR",null,null,"BAUGE",null,null,null,"2022-02-27",null,null,null,null,null,null,null,"2022-03-13",null,null,null,null,null,null,null,"2021-01-23","NANTES ERDRE",null,null,"BOURGENAY"]
["2021-01-23","LE MANS 24H",null,null,"AVRILLE",null,null,null,"2022-02-27",null,null,null,null,null,null,null,null,null,null,null,null,null,null,null,"2021-01-23","LAVAL",null,null,"ANJOU"]
["2021-01-23","NANTES VIGNEUX",null,null,"SAINT JEAN DE MTS"]
["2021-01-23","GUERANDE",null,null,"SAVENAY"]

{"sheet":"FMJ1","index":1,"n_rows":1,"n_cols":7,"rows_kept":1,"cut":false,"hidden":false,"merged":[[0,6,1,6]]}
[null,null,null,null,null,null,"Retour au classement"]

{"sheet":"FMJ2","index":2,"n_rows":1,"n_cols":7,"rows_kept":1,"cut":false,"hidden":false,"merged":[[0,6,1,6]]}
[null,null,null,null,null,null,"Retour au classement"]

{"sheet":"FMJ3","index":3,"n_rows":1,"n_cols":7,"rows_kept":1,"cut":false,"hidden":false,"merged":[[0,6,1,6]]}
[null,null,null,null,null,null,"Retour au classement"]

{"sheet":"FMJ4","index":4,"n_rows":1,"n_cols":7,"rows_kept":1,"cut":false,"hidden":false,"merged":[[0,6,1,6]]}
[null,null,null,null,null,null,"Retour au classement"]

{"sheet":"FMJ5","index":5,"n_rows":1,"n_cols":7,"rows_kept":1,"cut":false,"hidden":false,"merged":[[0,6,1,6]]}
[null,null,null,null,null,null,"Retour au classement"]

{"sheet":"Quart-Finale","index":6,"n_rows":1,"n_cols":7,"rows_kept":1,"cut":false,"hidden":false,"merged":[[0,6,1,6]]}
[null,null,null,null,null,null,"Retour au classement"]

{"sheet":"Demi-Finale","index":7,"n_rows":1,"n_cols":7,"rows_kept":1,"cut":false,"hidden":false,"merged":[[0,6,1,6]]}
[null,null,null,null,null,null,"Retour au classement"]

{"sheet":"Finale","index":8,"n_rows":1,"n_cols":7,"rows_kept":1,"cut":false,"hidden":false,"merged":[[0,6,1,6]]}
[null,null,null,null,null,null,"Retour au classement"]

{"sheet":"Barrages","index":9,"n_rows":1,"n_cols":7,"rows_kept":1,"cut":false,"hidden":false,"merged":[[0,6,1,6]]}
[null,null,null,null,null,null,"Retour au classement"]